fUSD/lending_fUSD_20250930
["ID","MTS","AMOUNT","RATE_DAILY","PERIOD"]
[388532654,1759236642130,-600.0,0.00019013,2]
[388532655,1759236642140,-500.0,0.00019014,2]
[388532656,1759236642149,-193.3,0.00019017,2]
[388532657,1759236642159,-739.07,0.00019022,2]
[388532658,1759236642169,-747.96159393,0.0001908,2]
[388532659,1759236642178,-10320.146899,0.00019081,2]
[388532660,1759236642188,-1000.0,0.00019099,2]
[388532661,1759236642197,-1000.6116,0.00019099,2]
[388532662,1759236642207,-693.0,0.00019141,2]
[388532663,1759236642216,-193.3,0.00019142,2]
[388532664,1759236642226,-6151.84,0.00019151,2]
[388532665,1759236642235,-1649.87,0.0001916,2]
[388532666,1759236642245,-2500.0,0.00019164,2]
[388532667,1759236642254,-2500.0,0.00019164,2]
[388532668,1759236642264,-2500.0,0.00019164,2]
[388532669,1759236642274,-1562.06079163,0.00019172,2]
[388532676,1759236642689,-500.0,0.00019173,2]
[388532677,1759236642701,-589.54780581,0.00019173,2]
[388532678,1759236642711,-547.20922059,0.00019173,2]
[388532679,1759236642720,-500.0,0.00019173,2]
[388532680,1759236642730,-500.0,0.00019173,2]
[388532681,1759236642739,-500.0,0.00019173,2]
[388532682,1759236642748,-490.72846195,0.00019173,2]
[388532684,1759236642757,-500.21815192,0.00019173,2]
[388532686,1759236642766,-500.0,0.00019173,2]
[388532687,1759236642775,-159.983392,0.00019173,2]
[388532688,1759236642785,-168.69331718,0.00019173,2]
[388532689,1759236642798,-165.21137758,0.00019173,2]
[388532690,1759236642808,-159.99936,0.00019173,2]
[388532691,1759236642817,-412.69891625,0.00019173,2]
[388532692,1759236642827,-151.9842224,0.00019173,2]
[388532693,1759236642838,-159.983392,0.00019173,2]
[388532694,1759236642849,-159.983392,0.00019173,2]
[388532695,1759236642865,-500.0,0.00019173,2]
[388532696,1759236642876,-500.0,0.00019173,2]
[388532697,1759236642885,-500.0,0.00019173,2]
[388532698,1759236642895,-500.0,0.00019173,2]
[388532699,1759236642904,-500.0,0.00019173,2]
[388532700,1759236642914,-500.0,0.00019173,2]
[388532701,1759236642924,-500.1030252,0.00019173,2]
[388532702,1759236642933,-500.0,0.00019173,2]
[388532703,1759236642943,-159.983392,0.00019173,2]
[388532704,1759236642953,-500.0,0.00019173,2]
[388532705,1759236642962,-557.96894384,0.00019173,2]
[388532706,1759236642972,-159.983392,0.00019173,2]
[388532707,1759236642982,-500.0,0.00019173,2]
[388532708,1759236642996,-500.44522544,0.00019173,2]
[388532709,1759236643007,-500.0,0.00019173,2]
[388532710,1759236643016,-501.25175707,0.00019173,2]
[388532711,1759236643027,-500.0,0.00019173,2]
[388532712,1759236643036,-500.10340089,0.00019173,2]
[388532713,1759236643046,-500.0,0.00019173,2]
[388532714,1759236643056,-500.66514915,0.00019173,2]
[388532715,1759236643065,-500.0,0.00019173,2]
[388532716,1759236643076,-500.0,0.00019173,2]
[388532717,1759236643086,-500.0,0.00019173,2]
[388532718,1759236643096,-500.07810043,0.00019173,2]
[388532719,1759236643106,-500.0,0.00019173,2]
[388532720,1759236643116,-500.31033319,0.00019173,2]
[388532721,1759236643126,-500.0,0.00019173,2]
[388532722,1759236643136,-500.0,0.00019173,2]
[388532723,1759236643146,-500.44024999,0.00019173,2]
[388532724,1759236643156,-508.31422343,0.00019173,2]
[388532725,1759236643166,-500.0,0.00019173,2]
[388532726,1759236643177,-151.0,0.00019175,2]
[388532727,1759236643188,-110622.0,0.00019177,2]
[388532728,1759236643200,-150.0,0.00019177,2]
[388532729,1759236643210,-300.0,0.00019177,2]
[388532730,1759236643220,-300.0,0.00019177,2]
[388532731,1759236643230,-300.0,0.00019177,2]
[388532732,1759236643240,-666.0,0.00019177,2]
[388532733,1759236643250,-500.0,0.00019178,2]
[388532734,1759236643260,-500.0,0.00019178,2]
[388532735,1759236643276,-839.75,0.00019178,2]
[388532736,1759236643286,-1020.5,0.00019178,2]
[388532737,1759236643295,-500.0,0.00019178,2]
[388532738,1759236643308,-500.0,0.00019178,2]
[388532739,1759236643318,-607.08,0.00019178,2]
[388532740,1759236643328,-500.0,0.00019178,2]
[388532741,1759236643338,-500.0,0.00019178,2]
[388532742,1759236643348,-500.0,0.00019178,2]
[388532743,1759236643358,-500.0,0.00019178,2]
[388532744,1759236643368,-500.0,0.00019178,2]
[388532745,1759236643377,-500.0,0.00019178,2]
[388532746,1759236643392,-625.12,0.00019178,2]
[388532747,1759236643402,-500.0,0.00019178,2]
[388532748,1759236643413,-1964.83,0.00019178,2]
[388532749,1759236643424,-1015.48,0.00019178,2]
[388532750,1759236643434,-500.0,0.00019178,2]
[388532751,1759236643445,-500.0,0.00019178,2]
[388532752,1759236643455,-500.0,0.00019178,2]
[388532753,1759236643465,-500.0,0.00019178,2]
[388532754,1759236643475,-500.0,0.00019178,2]
[388532755,1759236643485,-500.0,0.00019178,2]
[388532756,1759236643495,-562.0,0.00019178,2]
[388532757,1759236643505,-500.0,0.00019178,2]
[388532758,1759236643515,-2282.05,0.00019178,2]
[388532759,1759236643525,-852.25,0.00019178,2]
[388532760,1759236643535,-2416.93,0.00019178,2]
[388532761,1759236643545,-646.78,0.00019178,2]
[388532762,1759236643556,-500.0,0.00019178,2]
[388532763,1759236643565,-500.0,0.00019178,2]
[388532764,1759236643576,-1431.48,0.00019178,2]
[388532765,1759236643585,-509.83,0.00019178,2]
[388532766,1759236643595,-768.16,0.00019178,2]
[388532767,1759236643605,-500.0,0.00019178,2]
[388532768,1759236643615,-500.0,0.00019178,2]
[388532769,1759236643625,-775.97,0.00019178,2]
[388532770,1759236643635,-500.0,0.00019178,2]
[388532771,1759236643645,-806.16,0.00019178,2]
[388532772,1759236643655,-1121.26,0.00019178,2]
[388532773,1759236643665,-789.94,0.00019178,2]
[388532774,1759236643675,-757.03,0.00019178,2]
[388532775,1759236643685,-1244.26,0.00019178,2]
[388532776,1759236643695,-616.9,0.00019178,2]
[388532777,1759236643705,-500.0,0.00019178,2]
[388532778,1759236643715,-500.0,0.00019178,2]
[388532779,1759236643725,-500.0,0.00019178,2]
[388532780,1759236643736,-500.0,0.00019178,2]
[388532781,1759236643745,-500.0,0.00019178,2]
[388532782,1759236643756,-500.0,0.00019178,2]
[388532783,1759236643767,-528.24,0.00019178,2]
[388532784,1759236643782,-500.0,0.00019178,2]
[388532785,1759236643792,-2647.91,0.00019178,2]
[388532786,1759236643802,-500.0,0.00019178,2]
[388532787,1759236643812,-500.0,0.00019178,2]
[388532788,1759236643822,-568.85,0.00019178,2]
[388532789,1759236643832,-500.0,0.00019178,2]
[388532790,1759236643843,-500.0,0.00019178,2]
[388532791,1759236643853,-956.14,0.00019178,2]
[388532792,1759236643863,-500.0,0.00019178,2]
[388532793,1759236643873,-500.0,0.00019178,2]
[388532794,1759236643884,-577.88,0.00019178,2]
[388532795,1759236643894,-2697.95,0.00019178,2]
[388532796,1759236643904,-1823.42,0.00019178,2]
[388532797,1759236643914,-500.0,0.00019178,2]
[388532798,1759236643924,-500.0,0.00019178,2]
[388532799,1759236643935,-803.3,0.00019178,2]
[388532800,1759236643945,-779.29,0.00019178,2]
[388532801,1759236643955,-724.75,0.00019178,2]
[388532802,1759236643965,-780.81,0.00019178,2]
[388532803,1759236643975,-788.0,0.00019178,2]
[388532804,1759236643986,-500.0,0.00019178,2]
[388532805,1759236643996,-500.0,0.00019178,2]
[388532806,1759236644006,-500.0,0.00019178,2]
[388532807,1759236644017,-500.0,0.00019178,2]
[388532808,1759236644027,-1140.67,0.00019178,2]
[388532809,1759236644038,-195.43829882,0.00019178,2]
[388532810,1759236644048,-2507.06,0.00019178,2]
[388532811,1759236644059,-500.0,0.00019178,2]
[388532812,1759236644069,-961.56,0.00019178,2]
[388532813,1759236644079,-500.0,0.00019178,2]
[388532814,1759236644090,-500.0,0.00019178,2]
[388532815,1759236644100,-500.0,0.00019178,2]
[388532816,1759236644110,-500.0,0.00019178,2]
[388532817,1759236644121,-610.32,0.00019178,2]
[388532818,1759236644130,-500.0,0.00019178,2]
[388532819,1759236644140,-500.0,0.00019178,2]
[388532820,1759236644150,-2101.19,0.00019178,2]
[388532821,1759236644165,-500.0,0.00019178,2]
[388532822,1759236644175,-500.0,0.00019178,2]
[388532823,1759236644186,-1164.62,0.00019178,2]
[388532824,1759236644196,-2399.12,0.00019178,2]
[388532825,1759236644206,-1278.43,0.00019178,2]
[388532826,1759236644216,-840.44,0.00019178,2]
[388532827,1759236644226,-500.0,0.00019178,2]
[388532828,1759236644236,-500.0,0.00019178,2]
[388532829,1759236644246,-683.71,0.00019178,2]
[388532830,1759236644256,-504.4,0.00019178,2]
[388532831,1759236644266,-500.0,0.00019178,2]
[388532832,1759236644276,-500.0,0.00019178,2]
[388532833,1759236644286,-500.0,0.00019178,2]
[388532834,1759236644297,-241.22269477,0.00019178,2]
[388532835,1759236644307,-769.63,0.00019178,2]
[388532836,1759236644316,-1874.15,0.00019178,2]
[388532837,1759236644326,-1273.89,0.00019178,2]
[388532838,1759236644337,-500.0,0.00019178,2]
[388532839,1759236644347,-3314.41,0.00019178,2]
[388532840,1759236644356,-500.0,0.00019178,2]
[388532841,1759236644366,-650.69,0.00019178,2]
[388532842,1759236644376,-500.0,0.00019178,2]
[388532843,1759236644388,-500.0,0.00019178,2]
[388532844,1759236644398,-500.0,0.00019178,2]
[388532845,1759236644409,-500.0,0.00019178,2]
[388532846,1759236644419,-500.0,0.00019178,2]
[388532847,1759236644429,-500.0,0.00019178,2]
[388532848,1759236644439,-500.0,0.00019178,2]
[388532849,1759236644449,-500.0,0.00019178,2]
[388532850,1759236644459,-686.0,0.00019178,2]
[388532851,1759236644469,-500.0,0.00019178,2]
[388532852,1759236644479,-500.0,0.00019178,2]
[388532853,1759236644489,-500.0,0.00019178,2]
[388532854,1759236644499,-500.0,0.00019178,2]
[388532855,1759236644510,-500.0,0.00019178,2]
[388532856,1759236644519,-500.0,0.00019178,2]
[388532857,1759236644530,-2599.85,0.00019178,2]
[388532858,1759236644539,-500.0,0.00019178,2]
[388532859,1759236644550,-500.0,0.00019178,2]
[388532860,1759236644559,-500.0,0.00019178,2]
[388532861,1759236644569,-500.0,0.00019178,2]
[388532862,1759236644579,-1308.84,0.00019178,2]
[388532863,1759236644590,-500.0,0.00019178,2]
[388532864,1759236644600,-500.0,0.00019178,2]
[388532865,1759236644610,-500.0,0.00019178,2]
[388532866,1759236644620,-500.0,0.00019178,2]
[388532867,1759236644630,-1204.83,0.00019178,2]
[388532868,1759236644639,-500.0,0.00019178,2]
[388532869,1759236644649,-1296.49,0.00019178,2]
[388532870,1759236644659,-721.9,0.00019178,2]
[388532871,1759236644669,-302.2642663,0.00019178,2]
[388532872,1759236644680,-500.0,0.00019178,2]
[388532873,1759236644689,-500.0,0.00019178,2]
[388532874,1759236644700,-500.0,0.00019178,2]
[388532875,1759236644710,-500.0,0.00019178,2]
[388532876,1759236644720,-500.0,0.00019178,2]
[388532877,1759236644730,-785.77,0.00019178,2]
[388532878,1759236644740,-500.0,0.00019178,2]
[388532879,1759236644751,-304.12401406,0.00019178,2]
[388532880,1759236644760,-589.91,0.00019178,2]
[388532881,1759236644770,-500.0,0.00019178,2]
[388532882,1759236644780,-500.0,0.00019178,2]
[388532883,1759236644794,-1563.28,0.00019178,2]
[388532884,1759236644807,-500.0,0.00019178,2]
[388532885,1759236644817,-500.0,0.00019178,2]
[388532886,1759236644828,-500.0,0.00019178,2]
[388532887,1759236644847,-500.0,0.00019178,2]
[388532888,1759236644858,-1019.02,0.00019178,2]
[388532889,1759236644868,-300.0,0.00019178,2]
[388532890,1759236644878,-500.0,0.00019178,2]
[388532891,1759236644890,-500.0,0.00019178,2]
[388532892,1759236644900,-531.72,0.00019178,2]
[388532893,1759236644912,-500.0,0.00019178,2]
[388532894,1759236644923,-500.0,0.00019178,2]
[388532895,1759236644933,-500.0,0.00019178,2]
[388532896,1759236644946,-500.0,0.00019178,2]
[388532897,1759236644956,-1956.66,0.00019178,2]
[388532898,1759236644967,-1127.24,0.00019178,2]
[388532899,1759236644976,-500.0,0.00019178,2]
[388532900,1759236644987,-500.0,0.00019178,2]
[388532901,1759236644998,-500.0,0.00019178,2]
[388532902,1759236645008,-758.97,0.00019178,2]
[388532903,1759236645018,-500.0,0.00019178,2]
[388532904,1759236645028,-284.04692083,0.00019178,2]
[388532905,1759236645038,-500.0,0.00019178,2]
[388532906,1759236645049,-500.0,0.00019178,2]
[388532907,1759236645059,-500.0,0.00019178,2]
[388532908,1759236645068,-500.0,0.00019178,2]
[388532909,1759236645078,-500.0,0.00019178,2]
[388532910,1759236645088,-500.0,0.00019178,2]
[388532911,1759236645099,-500.0,0.00019178,2]
[388532912,1759236645108,-500.0,0.00019178,2]
[388532913,1759236645118,-500.0,0.00019178,2]
[388532914,1759236645128,-557.06,0.00019178,2]
[388532915,1759236645138,-500.0,0.00019178,2]
[388532916,1759236645148,-500.0,0.00019178,2]
[388532917,1759236645158,-1325.61,0.00019178,2]
[388532918,1759236645419,-500.0,0.00019178,2]
[388532919,1759236645429,-500.0,0.00019178,2]
[388532920,1759236645439,-500.0,0.00019178,2]
[388532921,1759236645449,-500.0,0.00019178,2]
[388532922,1759236645459,-1775.13,0.00019178,2]
[388532923,1759236645468,-500.0,0.00019178,2]
[388532925,1759236645478,-500.0,0.00019178,2]
[388532927,1759236645488,-500.0,0.00019178,2]
[388532928,1759236645498,-510.58,0.00019178,2]
[388532929,1759236645508,-500.0,0.00019178,2]
[388532930,1759236645518,-500.0,0.00019178,2]
[388532931,1759236645528,-540.37,0.00019178,2]
[388532932,1759236645538,-500.0,0.00019178,2]
[388532933,1759236645548,-500.0,0.00019178,2]
[388532934,1759236645558,-500.0,0.00019178,2]
[388532935,1759236645568,-151.0,0.00019178,2]
[388532936,1759236645578,-151.0,0.00019178,2]
[388532937,1759236645587,-500.0,0.00019178,2]
[388532938,1759236645598,-859.64,0.00019178,2]
[388532939,1759236645609,-151.0,0.00019178,2]
[388532940,1759236645620,-151.0,0.00019178,2]
[388532941,1759236645632,-1125.81,0.00019178,2]
[388532942,1759236645642,-151.0,0.00019178,2]
[388532943,1759236645651,-301.83455136,0.00019178,2]
[388532944,1759236645661,-512.08,0.00019178,2]
[388532945,1759236645672,-500.0,0.00019178,2]
[388532946,1759236645681,-500.0,0.00019178,2]
[388532947,1759236645691,-500.0,0.00019178,2]
[388532948,1759236645702,-500.0,0.00019178,2]
[388532949,1759236645713,-151.0,0.00019178,2]
[388532950,1759236645722,-151.0,0.00019178,2]
[388532951,1759236645733,-1660.39,0.00019178,2]
[388532952,1759236645743,-615.1054633,0.00019178,2]
[388532953,1759236645753,-151.0,0.00019178,2]
[388532954,1759236645762,-151.0,0.00019178,2]
[388532955,1759236645771,-151.0,0.00019178,2]
[388532956,1759236645781,-500.0,0.00019178,2]
[388532957,1759236645791,-500.0,0.00019178,2]
[388532958,1759236645801,-151.0,0.00019178,2]
[388532959,1759236645810,-500.0,0.00019178,2]
[388532960,1759236645821,-500.0,0.00019178,2]
[388532961,1759236645831,-500.0,0.00019178,2]
[388532962,1759236645840,-500.0,0.00019178,2]
[388532963,1759236645850,-500.0,0.00019178,2]
[388532964,1759236645860,-583.2,0.00019178,2]
[388532965,1759236645870,-500.0,0.00019178,2]
[388532966,1759236645879,-500.0,0.00019178,2]
[388532967,1759236645889,-500.0,0.00019178,2]
[388532968,1759236645898,-2361.75,0.00019178,2]
[388532969,1759236645908,-1580.78,0.00019178,2]
[388532970,1759236645918,-500.0,0.00019178,2]
[388532971,1759236645927,-500.0,0.00019178,2]
[388532972,1759236645938,-3278.0,0.00019178,2]
[388532973,1759236645948,-500.0,0.00019178,2]
[388532974,1759236645957,-500.0,0.00019178,2]
[388532975,1759236645967,-2646.42,0.00019178,2]
[388532976,1759236645976,-401.58243501,0.00019178,2]
[388532977,1759236645985,-500.0,0.00019178,2]
[388532978,1759236645999,-766.13,0.00019178,2]
[388532979,1759236646009,-585.79,0.00019178,2]
[388532980,1759236646019,-151.0,0.00019178,2]
[388532981,1759236646029,-610.64,0.00019178,2]
[388532982,1759236646039,-500.0,0.00019178,2]
[388532983,1759236646048,-151.0,0.00019178,2]
[388532984,1759236646058,-151.0,0.00019178,2]
[388532985,1759236646067,-233.704171,0.00019178,2]
[388532986,1759236646077,-819.73,0.00019178,2]
[388532988,1759236646087,-500.0,0.00019178,2]
[388532990,1759236646097,-500.0,0.00019178,2]
[388532991,1759236646106,-500.0,0.00019178,2]
[388532992,1759236646116,-500.0,0.00019178,2]
[388532993,1759236646126,-500.0,0.00019178,2]
[388532994,1759236646136,-500.0,0.00019178,2]
[388532995,1759236646146,-1209.61,0.00019178,2]
[388532996,1759236646156,-500.0,0.00019178,2]
[388532997,1759236646167,-500.0,0.00019178,2]
[388532998,1759236646176,-500.0,0.00019178,2]
[388532999,1759236646186,-184.81975484,0.00019178,2]
[388533000,1759236646196,-1581.45,0.00019178,2]
[388533001,1759236646206,-716.83,0.00019178,2]
[388533002,1759236646216,-505.79,0.00019178,2]
[388533003,1759236646226,-749.24,0.00019178,2]
[388533004,1759236646236,-500.0,0.00019178,2]
[388533005,1759236646245,-280.18480035,0.00019178,2]
[388533007,1759236646255,-784.29,0.00019178,2]
[388533008,1759236646264,-500.0,0.00019178,2]
[388533009,1759236646274,-500.0,0.00019178,2]
[388533010,1759236646284,-511.55,0.00019178,2]
[388533011,1759236646293,-945.55,0.00019178,2]
[388533012,1759236646303,-500.0,0.00019178,2]
[388533013,1759236646313,-500.0,0.00019178,2]
[388533014,1759236646323,-1193.9,0.00019178,2]
[388533015,1759236646333,-500.0,0.00019178,2]
[388533016,1759236646342,-500.0,0.00019178,2]
[388533017,1759236646352,-500.0,0.00019178,2]
[388533018,1759236646362,-641.67566843,0.00019178,2]
[388533019,1759236646371,-500.0,0.00019178,2]
[388533020,1759236646381,-500.0,0.00019178,2]
[388533021,1759236646390,-1243.67,0.00019178,2]
[388533022,1759236646400,-500.0,0.00019178,2]
[388533023,1759236646410,-500.0,0.00019178,2]
[388533024,1759236646419,-500.0,0.00019178,2]
[388533025,1759236646429,-1156.41,0.00019178,2]
[388533026,1759236646439,-500.0,0.00019178,2]
[388533027,1759236646448,-401.04308253,0.00019178,2]
[388533028,1759236646458,-500.0,0.00019178,2]
[388533029,1759236646468,-500.0,0.00019178,2]
[388533030,1759236646477,-1526.23,0.00019178,2]
[388533031,1759236646487,-1526.23,0.00019178,2]
[388533032,1759236646496,-1526.23,0.00019178,2]
[388533033,1759236646506,-1526.23,0.00019178,2]
[388533034,1759236646515,-1526.23,0.00019178,2]
[388533035,1759236646524,-1526.23,0.00019178,2]
[388533036,1759236646534,-500.0,0.00019178,2]
[388533037,1759236646544,-1526.23,0.00019178,2]
[388533038,1759236646554,-595.67,0.00019178,2]
[388533039,1759236646563,-1526.23,0.00019178,2]
[388533040,1759236646573,-500.0,0.00019178,2]
[388533041,1759236646583,-1526.23,0.00019178,2]
[388533042,1759236646593,-1526.23,0.00019178,2]
[388533043,1759236646603,-1526.23,0.00019178,2]
[388533044,1759236646612,-1526.23,0.00019178,2]
[388533045,1759236646628,-1526.23,0.00019178,2]
[388533046,1759236646637,-1526.23,0.00019178,2]
[388533047,1759236646647,-1526.23,0.00019178,2]
[388533048,1759236646657,-1526.23,0.00019178,2]
[388533049,1759236646667,-1526.23,0.00019178,2]
[388533050,1759236646676,-1526.23,0.00019178,2]
[388533051,1759236646686,-500.0,0.00019178,2]
[388533052,1759236646698,-1526.23,0.00019178,2]
[388533053,1759236646708,-1526.23,0.00019178,2]
[388533054,1759236646718,-500.0,0.00019178,2]
[388533055,1759236646728,-1526.23,0.00019178,2]
[388533056,1759236646738,-1526.23,0.00019178,2]
[388533057,1759236646747,-1526.23,0.00019178,2]
[388533058,1759236646757,-1526.33991566,0.00019178,2]
[388533059,1759236646768,-500.0,0.00019178,2]
[388533060,1759236646779,-500.0,0.00019178,2]
[388533061,1759236646792,-2989.39,0.00019178,2]
[388533062,1759236646802,-500.0,0.00019178,2]
[388533063,1759236646812,-588.07,0.00019178,2]
[388533064,1759236646822,-1367.04,0.00019178,2]
[388533065,1759236646834,-500.0,0.00019178,2]
[388533066,1759236646844,-500.0,0.00019178,2]
[388533067,1759236646853,-500.0,0.00019178,2]
[388533068,1759236646864,-500.0,0.00019178,2]
[388533069,1759236646876,-500.0,0.00019178,2]
[388533070,1759236646886,-151.0,0.00019178,2]
[388533071,1759236646897,-500.0,0.00019178,2]
[388533072,1759236646909,-500.0,0.00019178,2]
[388533073,1759236646919,-500.0,0.00019178,2]
[388533074,1759236646930,-1030.88,0.00019178,2]
[388533075,1759236646943,-500.0,0.00019178,2]
[388533076,1759236646954,-500.0,0.00019178,2]
[388533077,1759236646965,-641.82,0.00019178,2]
[388533078,1759236646977,-500.0,0.00019178,2]
[388533079,1759236646987,-500.0,0.00019178,2]
[388533080,1759236646998,-839.19,0.00019178,2]
[388533081,1759236647008,-1386.24,0.00019178,2]
[388533082,1759236647017,-500.0,0.00019178,2]
[388533083,1759236647027,-500.0,0.00019178,2]
[388533084,1759236647037,-500.0,0.00019178,2]
[388533085,1759236647047,-500.0,0.00019178,2]
[388533086,1759236647056,-1351.91,0.00019178,2]
[388533087,1759236647066,-907.53,0.00019178,2]
[388533088,1759236647076,-795.93,0.00019178,2]
[388533089,1759236647086,-500.0,0.00019178,2]
[388533090,1759236647098,-500.0,0.00019178,2]
[388533091,1759236647107,-870.82,0.00019178,2]
[388533092,1759236647116,-798.25,0.00019178,2]
[388533093,1759236647126,-257.27735958,0.00019178,2]
[388533094,1759236647135,-500.0,0.00019178,2]
[388533095,1759236647144,-500.0,0.00019178,2]
[388533096,1759236647154,-500.0,0.00019178,2]
[388533097,1759236647163,-538.01,0.00019178,2]
[388533098,1759236647172,-852.65,0.00019178,2]
[388533099,1759236647182,-500.0,0.00019178,2]
[388533100,1759236647192,-517.57,0.00019178,2]
[388533101,1759236647202,-3005.89,0.00019178,2]
[388533102,1759236647212,-3005.89,0.00019178,2]
[388533103,1759236647222,-3005.89,0.00019178,2]
[388533104,1759236647231,-3005.89,0.00019178,2]
[388533105,1759236647240,-500.0,0.00019178,2]
[388533106,1759236647250,-3005.89,0.00019178,2]
[388533107,1759236647263,-3005.89,0.00019178,2]
[388533108,1759236647272,-3005.89,0.00019178,2]
[388533109,1759236647282,-3005.89,0.00019178,2]
[388533110,1759236647291,-500.0,0.00019178,2]
[388533111,1759236647301,-3005.89,0.00019178,2]
[388533112,1759236647310,-3005.89,0.00019178,2]
[388533113,1759236647319,-3005.89,0.00019178,2]
[388533114,1759236647328,-3005.89,0.00019178,2]
[388533115,1759236647338,-3005.89,0.00019178,2]
[388533116,1759236647347,-3005.89,0.00019178,2]
[388533117,1759236647356,-1588.62,0.00019178,2]
[388533118,1759236647365,-500.0,0.00019178,2]
[388533119,1759236647375,-3005.89,0.00019178,2]
[388533120,1759236647384,-3005.89,0.00019178,2]
[388533121,1759236647393,-500.0,0.00019178,2]
[388533122,1759236647403,-3005.89,0.00019178,2]
[388533123,1759236647413,-3005.89,0.00019178,2]
[388533124,1759236647422,-3005.89,0.00019178,2]
[388533125,1759236647431,-3005.89,0.00019178,2]
[388533126,1759236647440,-3005.89,0.00019178,2]
[388533127,1759236647449,-3005.89,0.00019178,2]
[388533128,1759236647458,-3005.89,0.00019178,2]
[388533129,1759236647467,-3006.03339971,0.00019178,2]
[388533130,1759236647477,-500.0,0.00019178,2]
[388533131,1759236647487,-670.32,0.00019178,2]
[388533132,1759236647497,-500.0,0.00019178,2]
[388533133,1759236647507,-500.0,0.00019178,2]
[388533134,1759236647516,-620.83,0.00019178,2]
[388533135,1759236647525,-500.0,0.00019178,2]
[388533136,1759236647535,-500.0,0.00019178,2]
[388533137,1759236647545,-500.0,0.00019178,2]
[388533138,1759236647555,-431.94927674,0.00019178,2]
[388533139,1759236647564,-500.0,0.00019178,2]
[388533140,1759236647574,-500.0,0.00019178,2]
[388533141,1759236647583,-500.0,0.00019178,2]
[388533142,1759236647593,-257.59452018,0.00019178,2]
[388533143,1759236647602,-500.0,0.00019178,2]
[388533144,1759236647612,-1409.18,0.00019178,2]
[388533145,1759236647622,-500.0,0.00019178,2]
[388533146,1759236647632,-1632.14,0.00019178,2]
[388533147,1759236647641,-500.0,0.00019178,2]
[388533148,1759236647651,-500.0,0.00019178,2]
[388533149,1759236647660,-500.0,0.00019178,2]
[388533150,1759236647670,-500.0,0.00019178,2]
[388533151,1759236647680,-3131.99,0.00019178,2]
[388533152,1759236647689,-890.61,0.00019178,2]
[388533153,1759236647700,-1628.15,0.00019178,2]
[388533154,1759236647709,-650.41,0.00019178,2]
[388533155,1759236647719,-2154.22,0.00019178,2]
[388533156,1759236647728,-500.0,0.00019178,2]
[388533157,1759236647738,-500.0,0.00019178,2]
[388533158,1759236647747,-500.0,0.00019178,2]
[388533159,1759236647759,-151.0,0.00019178,2]
[388533160,1759236647768,-500.0,0.00019178,2]
[388533161,1759236647777,-500.0,0.00019178,2]
[388533162,1759236647787,-265.424058,0.00019178,2]
[388533163,1759236647797,-500.0,0.00019178,2]
[388533164,1759236647806,-500.0,0.00019178,2]
[388533165,1759236647816,-500.0,0.00019178,2]
[388533166,1759236647826,-912.82,0.00019178,2]